[Event "SS Manhem Chess Week 2022: Goteborg Open"]
[Site "Schackcentrum, Vegagatan 20, Gothenburg, Sweden"]
[Date "2022.08.12"]
[Round "4.15"]
[White "Andreasson, Leo"]
[Black "Mohammed, Safian Haj"]
[Result "1/2-1/2"]
[TimeControl "15 minutes + 5 seconds per move from move one (Round 1 - 4) / 90 minutes + 30 seconds per move from move one (Round 5 - 8)"]
[WhiteFideId "1768980"]
[BlackFideId "1729276"]
[WhiteElo "1132"]
[BlackElo "1794"]

1. Nf3 {[%clk 00:15:03]} {[%emt 00:00:06]} Nf6 {[%clk 00:15:09]} {[%emt
00:00:03]} 2. d4 {[%clk 00:15:07]} g6 {[%clk 00:15:12]} {[%emt 00:00:02]} 3. c4
{[%emt 00:00:04]} d5 {[%clk 00:15:13]} 4. Nc3 {[%clk 00:15:13]} {[%emt
00:00:04]} Bg7 {[%clk 00:15:15]} {[%emt 00:00:03]} 5. Bd2 {[%clk 00:14:57]}
{[%emt 00:00:20]} O-O {[%clk 00:15:16]} {[%emt 00:00:04]} 6. Qc1 {[%clk
00:15:01]} {[%emt 00:00:02]} Re8 {[%clk 00:14:48]} {[%emt 00:00:32]} 7. Bh6
{[%clk 00:15:04]} {[%emt 00:00:03]} Bh8 {[%clk 00:14:51]} {[%emt 00:00:02]} 8.
e3 {[%clk 00:14:26]} {[%emt 00:00:44]} c6 {[%clk 00:14:53]} {[%emt 00:00:03]} 9.
Bd3 {[%clk 00:14:20]} {[%emt 00:00:11]} Bg7 {[%clk 00:14:55]} {[%emt 00:00:03]}
10. Bxg7 {[%clk 00:14:22]} {[%emt 00:00:03]} Kxg7 {[%clk 00:14:58]} {[%emt
00:00:02]} 11. O-O {[%clk 00:14:22]} {[%emt 00:00:04]} Bg4 {[%clk 00:14:59]}
{[%emt 00:00:04]} 12. Ne5 {[%clk 00:14:14]} {[%emt 00:00:13]} Be6 {[%clk
00:15:00]} {[%emt 00:00:04]} 13. h3 {[%clk 00:14:03]} {[%emt 00:00:16]} Nbd7
{[%clk 00:15:01]} {[%emt 00:00:03]} 14. Nf3 {[%clk 00:14:07]} {[%emt 00:00:02]}
dxc4 {[%clk 00:15:02]} {[%emt 00:00:04]} 15. Bc2 {[%clk 00:13:57]} {[%emt
00:00:14]} b5 {[%clk 00:15:01]} {[%emt 00:00:06]} 16. Ng5 {[%clk 00:13:49]}
{[%emt 00:00:14]} Nb6 {[%clk 00:14:57]} {[%emt 00:00:08]} 17. Nxe6+ {[%clk
00:13:44]} {[%emt 00:00:09]} fxe6 {[%clk 00:14:59]} {[%emt 00:00:03]} 18. a4
{[%clk 00:13:27]} {[%emt 00:00:22]} a6 {[%clk 00:14:57]} {[%emt 00:00:07]} 19.
Qd1 {[%clk 00:12:56]} {[%emt 00:00:36]} Nbd5 {[%clk 00:14:41]} {[%emt
00:00:21]} 20. Nxd5 {[%clk 00:11:54]} {[%emt 00:01:08]} exd5 {[%clk 00:14:42]}
{[%emt 00:00:04]} 21. Qf3 {[%clk 00:11:27]} {[%emt 00:00:32]} b4 {[%clk
00:14:27]} {[%emt 00:00:19]} 22. b3 {[%clk 00:11:11]} {[%emt 00:00:21]} c3
{[%clk 00:14:26]} {[%emt 00:00:06]} 23. Rad1 {[%clk 00:10:55]} {[%emt
00:00:21]} e5 {[%clk 00:14:19]} {[%emt 00:00:12]} 24. dxe5 {[%clk 00:10:09]}
{[%emt 00:00:51]} Rxe5 {[%clk 00:14:21]} {[%emt 00:00:02]} 25. Qf4 {[%clk
00:10:07]} {[%emt 00:00:07]} Re8 {[%clk 00:14:11]} {[%emt 00:00:15]} 26. Qxb4
{[%clk 00:10:10]} {[%emt 00:00:03]} Rc8 {[%clk 00:11:05]} {[%emt 00:03:10]} 27.
Qxc3 {[%clk 00:10:06]} {[%emt 00:00:09]} Qe7 {[%clk 00:10:33]} {[%emt
00:00:36]} 28. Qd3 {[%clk 00:09:40]} {[%emt 00:00:32]} Ne4 {[%clk 00:10:14]}
{[%emt 00:00:24]} 29. Qxa6 {[%clk 00:09:17]} {[%emt 00:00:29]} Nc5 {[%clk
00:10:04]} {[%emt 00:00:14]} 30. Qe2 {[%clk 00:08:38]} {[%emt 00:00:44]} Rb8
{[%clk 00:08:31]} {[%emt 00:01:37]} 31. Rb1 {[%clk 00:07:40]} {[%emt 00:01:04]}
Rb4 {[%clk 00:08:20]} {[%emt 00:00:15]} 32. Qd2 {[%clk 00:07:01]} {[%emt
00:00:44]} Reb8 {[%clk 00:08:06]} {[%emt 00:00:19]} 33. Qd1 {[%clk 00:06:32]}
{[%emt 00:00:34]} Ne6 {[%clk 00:07:14]} {[%emt 00:00:56]} 34. Re1 {[%clk
00:06:17]} {[%emt 00:00:20]} Rd8 {[%clk 00:06:54]} {[%emt 00:00:25]} 35. Qe2
{[%clk 00:05:03]} {[%emt 00:01:20]} Re8 {[%clk 00:06:30]} {[%emt 00:00:28]} 36.
Rbd1 {[%clk 00:04:24]} {[%emt 00:00:45]} Nc5 {[%clk 00:04:54]} {[%emt
00:01:40]} 37. Rb1 {[%clk 00:03:29]} {[%emt 00:01:01]} Ne6 {[%clk 00:04:49]}
{[%emt 00:00:09]} 38. Rbd1 {[%clk 00:03:30]} {[%emt 00:00:04]} Qg5 {[%clk
00:04:15]} {[%emt 00:00:38]} 39. Qd2 {[%clk 00:03:09]} {[%emt 00:00:27]} Qe7
{[%clk 00:03:41]} {[%emt 00:00:39]} 40. Qe2 {[%clk 00:03:10]} {[%emt 00:00:03]}
Nf4 {[%clk 00:03:08]} {[%emt 00:00:39]} 41. Qd2 {[%clk 00:02:43]} {[%emt
00:00:32]} Ne6 {[%clk 00:03:04]} {[%emt 00:00:09]} 42. Qe2 {[%clk 00:02:43]}
{[%emt 00:00:05]} Nf4 {[%clk 00:01:05]} {[%emt 00:02:03]} 43. Qf3 {[%clk
00:02:15]} {[%emt 00:00:33]} Ne6 {[%clk 00:01:00]} {[%emt 00:00:10]} 44. Qe2
{[%clk 00:02:15]} {[%emt 00:00:05]} Nf4 {[%clk 00:01:00]} {[%emt 00:00:05]} 45.
Qf3 {[%clk 00:02:18]} {[%emt 00:00:03]} Ne6 {[%clk 00:01:04]} 46. Qe2 {[%clk
00:02:22]} {[%emt 00:00:02]} 1/2-1/2

[Event "SS Manhem Chess Week 2022: Goteborg Open"]
[Site "Schackcentrum, Vegagatan 20, Gothenburg, Sweden"]
[Date "2022.08.12"]
[Round "4.16"]
[White "Jonbrink, Per-Olof"]
[Black "Josefsson, Ivar"]
[Result "1-0"]
[TimeControl "15 minutes + 5 seconds per move from move one (Round 1 - 4) / 90 minutes + 30 seconds per move from move one (Round 5 - 8)"]
[WhiteFideId "1720163"]
[BlackFideId "1766040"]
[WhiteElo "1728"]
[BlackElo "1565"]

1. e4 {[%clk 00:15:08]} {[%emt 00:00:02]} e5 {[%clk 00:15:09]} {[%emt
00:00:01]} 2. Nf3 {[%clk 00:15:09]} {[%emt 00:00:04]} Nc6 {[%clk 00:15:13]}
{[%emt 00:00:02]} 3. d4 {[%clk 00:15:06]} {[%emt 00:00:07]} exd4 {[%clk
00:15:16]} {[%emt 00:00:02]} 4. Bc4 {[%clk 00:15:10]} {[%emt 00:00:03]} Nf6
{[%clk 00:15:14]} {[%emt 00:00:06]} 5. e5 {[%clk 00:15:11]} {[%emt 00:00:04]}
Ne4 {[%clk 00:15:11]} {[%emt 00:00:08]} 6. O-O {[%clk 00:13:22]} {[%emt
00:01:55]} Be7 {[%clk 00:15:02]} {[%emt 00:00:13]} 7. Re1 {[%clk 00:13:11]}
{[%emt 00:00:17]} d5 {[%clk 00:14:22]} {[%emt 00:00:45]} 8. exd6 {[%clk
00:12:57]} {[%emt 00:00:19]} Nxd6 {[%clk 00:14:25]} {[%emt 00:00:03]} 9. Bb3
{[%clk 00:12:13]} {[%emt 00:00:49]} O-O {[%clk 00:14:19]} {[%emt 00:00:10]} 10.
Nxd4 {[%clk 00:11:59]} {[%emt 00:00:19]} Nxd4 {[%clk 00:14:15]} {[%emt
00:00:10]} 11. Qxd4 {[%clk 00:12:02]} {[%emt 00:00:02]} Bf6 {[%clk 00:14:14]}
{[%emt 00:00:06]} 12. Qd1 {[%clk 00:11:35]} {[%emt 00:00:31]} Bf5 {[%clk
00:13:51]} {[%emt 00:00:28]} 13. Nc3 {[%clk 00:10:50]} {[%emt 00:00:50]} Bxc3
{[%clk 00:12:32]} {[%emt 00:01:24]} 14. bxc3 {[%clk 00:10:53]} {[%emt
00:00:02]} Qf6 {[%clk 00:12:35]} {[%emt 00:00:02]} 15. Be3 {[%clk 00:09:38]}
{[%emt 00:01:19]} Qxc3 {[%clk 00:10:53]} {[%emt 00:01:48]} 16. Bd4 {[%clk
00:09:15]} {[%emt 00:00:28]} Qc6 {[%clk 00:10:51]} {[%emt 00:00:07]} 17. f3
{[%clk 00:08:47]} {[%emt 00:00:33]} Rad8 {[%clk 00:10:50]} {[%emt 00:00:05]} 18.
Qe2 {[%clk 00:07:23]} {[%emt 00:01:25]} Rfe8 {[%clk 00:10:38]} {[%emt
00:00:21]} 19. Qf2 {[%clk 00:07:26]} {[%emt 00:00:02]} h6 {[%clk 00:07:37]}
{[%emt 00:03:06]} 20. Qg3 {[%clk 00:06:06]} {[%emt 00:01:25]} Bg6 {[%clk
00:07:29]} {[%emt 00:00:13]} 21. Bb2 {[%clk 00:05:25]} {[%emt 00:00:47]} Qb6+
{[%clk 00:06:24]} {[%emt 00:01:09]} 22. Kh1 {[%clk 00:05:11]} {[%emt 00:00:19]}
c5 {[%clk 00:05:50]} {[%emt 00:00:39]} 23. Qxg6 {[%clk 00:04:43]} {[%emt
00:00:34]} Rxe1+ {[%clk 00:05:12]} {[%emt 00:00:44]} 24. Rxe1 {[%clk 00:04:41]}
{[%emt 00:00:07]} Ne8 {[%clk 00:04:57]} {[%emt 00:00:20]} 25. Rxe8+ {[%clk
00:04:05]} {[%emt 00:00:42]} Rxe8 {[%clk 00:05:00]} {[%emt 00:00:02]} 26. Qxg7#
1-0

[Event "SS Manhem Chess Week 2022: Goteborg Open"]
[Site "Schackcentrum, Vegagatan 20, Gothenburg, Sweden"]
[Date "2022.08.12"]
[Round "4.17"]
[White "Kosmidis, Thomas"]
[Black "Al Saab, Ranny"]
[Result "0-1"]
[TimeControl "15 minutes + 5 seconds per move from move one (Round 1 - 4) / 90 minutes + 30 seconds per move from move one (Round 5 - 8)"]
[WhiteFideId "1753380"]
[BlackFideId "1768360"]
[WhiteElo "1673"]
[BlackElo "1516"]

1. d4 {[%clk 00:15:08]} {[%emt 00:00:01]} d5 {[%clk 00:15:09]} {[%emt
00:00:01]} 2. c4 {[%clk 00:15:11]} {[%emt 00:00:02]} e6 {[%clk 00:15:13]}
{[%emt 00:00:02]} 3. Nc3 {[%clk 00:15:14]} Bb4 {[%clk 00:15:17]} {[%emt
00:00:01]} 4. cxd5 {[%clk 00:15:16]} {[%emt 00:00:03]} exd5 {[%clk 00:15:09]}
{[%emt 00:00:13]} 5. Nf3 {[%clk 00:15:17]} {[%emt 00:00:05]} Nc6 {[%clk
00:15:08]} {[%emt 00:00:07]} 6. Bf4 {[%clk 00:15:06]} {[%emt 00:00:15]} Nf6
{[%clk 00:15:07]} {[%emt 00:00:07]} 7. e3 {[%clk 00:14:39]} {[%emt 00:00:32]}
Bf5 {[%clk 00:14:52]} {[%emt 00:00:20]} 8. Bb5 {[%clk 00:13:30]} {[%emt
00:01:13]} O-O {[%clk 00:14:38]} {[%emt 00:00:19]} 9. O-O {[%clk 00:13:26]}
{[%emt 00:00:09]} a6 {[%clk 00:14:36]} {[%emt 00:00:07]} 10. Bxc6 {[%clk
00:12:58]} {[%emt 00:00:33]} bxc6 {[%clk 00:14:40]} {[%emt 00:00:02]} 11. Ne5
{[%clk 00:13:01]} {[%emt 00:00:02]} c5 {[%clk 00:13:41]} {[%emt 00:01:05]} 12.
a3 {[%clk 00:13:01]} {[%emt 00:00:04]} Bxc3 {[%clk 00:13:34]} {[%emt 00:00:12]}
13. bxc3 {[%clk 00:13:05]} {[%emt 00:00:01]} c4 {[%clk 00:11:21]} {[%emt
00:02:18]} 14. f3 {[%clk 00:11:27]} {[%emt 00:01:43]} Re8 {[%clk 00:07:46]}
{[%emt 00:03:38]} 15. Re1 {[%clk 00:10:19]} {[%emt 00:01:15]} Nh5 {[%clk
00:05:23]} {[%emt 00:02:26]} 16. Bg3 {[%clk 00:10:03]} {[%emt 00:00:23]} Nxg3
{[%emt 00:00:25]} 17. hxg3 {[%clk 00:10:05]} {[%emt 00:00:01]} Qd6 {[%clk
00:04:37]} {[%emt 00:00:29]} 18. Kf2 {[%clk 00:10:04]} {[%emt 00:00:09]} f6
{[%clk 00:04:34]} {[%emt 00:00:07]} 19. g4 {[%clk 00:09:48]} {[%emt 00:00:23]}
Bc8 {[%clk 00:03:59]} {[%emt 00:00:40]} 20. Qa4 {[%clk 00:09:49]} {[%emt
00:00:05]} Qe6 {[%clk 00:03:23]} {[%emt 00:00:38]} 21. Qc6 {[%clk 00:07:55]}
{[%emt 00:02:02]} Ra7 {[%clk 00:01:40]} {[%emt 00:01:48]} 22. Qc5 {[%clk
00:07:43]} {[%emt 00:00:18]} Rb7 {[%clk 00:00:43]} {[%emt 00:00:57]} 23. a4
{[%clk 00:05:36]} {[%emt 00:02:16]} fxe5 {[%clk 00:00:30]} {[%emt 00:00:17]} 24.
dxe5 {[%clk 00:05:41]} {[%emt 00:00:01]} Qxe5 {[%clk 00:00:26]} {[%emt
00:00:09]} 25. Rad1 {[%clk 00:05:44]} {[%emt 00:00:02]} Rb2+ {[%clk 00:00:26]}
{[%emt 00:00:05]} 26. Kg1 {[%clk 00:05:40]} {[%emt 00:00:09]} Qg3 {[%clk
00:00:06]} {[%emt 00:00:26]} 27. Qxd5+ {[%clk 00:03:21]} {[%emt 00:02:24]} Kh8
{[%clk 00:00:10]} 28. f4 {[%clk 00:01:50]} {[%emt 00:01:36]} Bb7 {[%clk
00:00:14]} 29. Qxb7 {[%clk 00:01:44]} {[%emt 00:00:11]} Rxb7 {[%clk 00:00:17]}
{[%emt 00:00:02]} 0-1

[Event "SS Manhem Chess Week 2022: Goteborg Open"]
[Site "Schackcentrum, Vegagatan 20, Gothenburg, Sweden"]
[Date "2022.08.12"]
[Round "4.18"]
[White "Sundin, Sven-Ingvar"]
[Black "Persson, Michael"]
[Result "1/2-1/2"]
[TimeControl "15 minutes + 5 seconds per move from move one (Round 1 - 4) / 90 minutes + 30 seconds per move from move one (Round 5 - 8)"]
[WhiteFideId "1724517"]
[BlackFideId "1764179"]
[WhiteElo "1637"]
[BlackElo "1267"]

1. e4 {[%clk 00:15:08]} e5 {[%clk 00:15:09]} {[%emt 00:00:02]} 2. Nf3 {[%clk
00:15:12]} {[%emt 00:00:02]} Nc6 {[%clk 00:15:12]} 3. Bb5 {[%clk 00:15:15]}
{[%emt 00:00:02]} d6 {[%clk 00:15:15]} {[%emt 00:00:02]} 4. h3 {[%clk
00:15:16]} {[%emt 00:00:04]} Bd7 {[%clk 00:15:19]} {[%emt 00:00:02]} 5. c3
{[%clk 00:15:15]} {[%emt 00:00:06]} a6 {[%clk 00:15:12]} {[%emt 00:00:13]} 6.
Ba4 {[%clk 00:15:18]} {[%emt 00:00:02]} b5 {[%clk 00:15:14]} {[%emt 00:00:02]}
7. Bc2 {[%clk 00:15:21]} {[%emt 00:00:02]} Nf6 {[%clk 00:14:59]} {[%emt
00:00:20]} 8. O-O {[%clk 00:15:19]} {[%emt 00:00:07]} Be7 {[%clk 00:15:00]}
{[%emt 00:00:05]} 9. d4 {[%clk 00:15:13]} {[%emt 00:00:10]} exd4 {[%clk
00:14:06]} {[%emt 00:01:00]} 10. cxd4 {[%clk 00:15:11]} {[%emt 00:00:07]} Nb4
{[%clk 00:13:00]} {[%emt 00:01:10]} 11. Nc3 {[%clk 00:14:40]} {[%emt 00:00:36]}
Nxc2 {[%clk 00:13:00]} {[%emt 00:00:06]} 12. Qxc2 {[%clk 00:14:43]} {[%emt
00:00:02]} O-O {[%clk 00:13:02]} {[%emt 00:00:03]} 13. e5 {[%clk 00:13:59]}
{[%emt 00:00:48]} dxe5 {[%clk 00:12:22]} {[%emt 00:00:46]} 14. dxe5 {[%clk
00:14:00]} {[%emt 00:00:04]} Ne8 {[%clk 00:11:26]} {[%emt 00:01:01]} 15. Be3
{[%clk 00:13:22]} {[%emt 00:00:42]} Bc6 {[%clk 00:09:38]} {[%emt 00:01:54]} 16.
Rad1 {[%clk 00:13:01]} {[%emt 00:00:25]} Qc8 {[%clk 00:09:30]} {[%emt
00:00:13]} 17. Nd4 {[%clk 00:12:37]} {[%emt 00:00:29]} Bb7 {[%clk 00:08:40]}
{[%emt 00:00:56]} 18. Nf5 {[%clk 00:11:56]} {[%emt 00:00:45]} Qe6 {[%clk
00:07:41]} {[%emt 00:01:04]} 19. Nxe7+ {[%clk 00:10:29]} {[%emt 00:01:33]} Qxe7
{[%clk 00:07:44]} {[%emt 00:00:02]} 20. f4 {[%clk 00:10:31]} {[%emt 00:00:02]}
f6 {[%clk 00:07:17]} {[%emt 00:00:32]} 21. Nd5 {[%clk 00:10:14]} {[%emt
00:00:21]} Bxd5 {[%clk 00:06:50]} {[%emt 00:00:32]} 22. Rxd5 {[%clk 00:10:17]}
{[%emt 00:00:03]} fxe5 {[%clk 00:06:48]} {[%emt 00:00:08]} 23. Rxe5 {[%clk
00:09:19]} {[%emt 00:01:03]} Qf6 {[%clk 00:04:51]} {[%emt 00:02:01]} 24. g4
{[%clk 00:07:34]} {[%emt 00:01:49]} Qh6 {[%clk 00:03:55]} {[%emt 00:01:01]} 25.
Kh2 {[%clk 00:07:21]} {[%emt 00:00:18]} c6 {[%clk 00:03:25]} {[%emt 00:00:35]}
26. Qc5 {[%clk 00:06:37]} {[%emt 00:00:49]} Rd8 {[%clk 00:02:12]} {[%emt
00:01:18]} 27. f5 {[%clk 00:06:31]} {[%emt 00:00:12]} Qd6 {[%clk 00:02:12]}
{[%emt 00:00:04]} 28. Rc1 {[%clk 00:05:15]} {[%emt 00:01:21]} Qd3 {[%clk
00:01:24]} {[%emt 00:00:53]} 29. Rc2 {[%clk 00:04:44]} {[%emt 00:00:35]} Qd1
{[%clk 00:00:32]} {[%emt 00:00:58]} 30. Qxc6 {[%clk 00:04:18]} {[%emt
00:00:32]} Nf6 {[%clk 00:00:34]} {[%emt 00:00:02]} 31. Qc3 {[%clk 00:03:55]}
{[%emt 00:00:28]} Nxg4+ {[%clk 00:00:17]} {[%emt 00:00:22]} 32. hxg4 {[%clk
00:03:55]} {[%emt 00:00:04]} Qxg4 {[%clk 00:00:20]} {[%emt 00:00:02]} 33. Rf2
{[%clk 00:03:34]} {[%emt 00:00:25]} Qh4+ {[%clk 00:00:09]} {[%emt 00:00:17]} 34.
Kg2 {[%clk 00:03:16]} {[%emt 00:00:23]} Qg4+ {[%clk 00:00:13]} {[%emt
00:00:02]} 35. Kh2 {[%clk 00:02:33]} {[%emt 00:00:48]} Qh4+ {[%clk 00:00:16]}
{[%emt 00:00:02]} 36. Kg2 {[%clk 00:02:03]} {[%emt 00:00:35]} Qg4+ {[%emt
00:00:03]} 1/2-1/2

[Event "SS Manhem Chess Week 2022: Goteborg Open"]
[Site "Schackcentrum, Vegagatan 20, Gothenburg, Sweden"]
[Date "2022.08.13"]
[Round "5.1"]
[White "Jacobsen, Mikkel Manosri"]
[Black "Nygren, Kim"]
[Result "1-0"]
[TimeControl "15 minutes + 5 seconds per move from move one (Round 1 - 4) / 90 minutes + 30 seconds per move from move one (Round 5 - 8)"]
[WhiteTitle "FM"]
[BlackTitle "CM"]
[WhiteFideId "1444514"]
[BlackFideId "1706136"]
[WhiteElo "2320"]
[BlackElo "2229"]

1. d4 {[%clk 01:30:58]} {[%emt 00:00:02]} f5 {[%clk 01:30:52]} {[%emt
00:00:08]} 2. g3 {[%clk 01:30:20]} {[%emt 00:01:08]} Nf6 {[%clk 01:31:15]}
{[%emt 00:00:07]} 3. Bg2 {[%clk 01:30:45]} {[%emt 00:00:05]} g6 {[%clk
01:31:39]} {[%emt 00:00:06]} 4. Nf3 {[%clk 01:31:11]} {[%emt 00:00:04]} Bg7
{[%clk 01:32:05]} {[%emt 00:00:05]} 5. O-O {[%clk 01:31:36]} {[%emt 00:00:05]}
O-O {[%clk 01:32:07]} {[%emt 00:00:27]} 6. c4 {[%clk 01:30:12]} {[%emt
00:01:55]} d6 {[%clk 01:28:26]} {[%emt 00:04:11]} 7. Nc3 {[%clk 01:30:30]}
{[%emt 00:00:12]} c6 {[%clk 01:27:08]} {[%emt 00:01:47]} 8. Qc2 {[%clk
01:29:31]} {[%emt 00:01:29]} Na6 {[%clk 01:24:51]} {[%emt 00:02:49]} 9. Rd1
{[%clk 01:27:51]} {[%emt 00:02:09]} Qe8 {[%clk 01:24:03]} {[%emt 00:01:18]} 10.
b3 {[%clk 01:23:07]} {[%emt 00:05:14]} Nb4 {[%clk 01:21:41]} {[%emt 00:02:52]}
11. Qb1 {[%clk 01:23:07]} {[%emt 00:00:29]} e5 {[%clk 01:19:45]} {[%emt
00:02:26]} 12. a3 {[%clk 01:08:01]} {[%emt 00:15:37]} Na6 {[%clk 01:16:32]}
{[%emt 00:03:43]} 13. b4 {[%clk 01:03:57]} {[%emt 00:04:33]} f4 {[%clk
01:09:21]} {[%emt 00:07:41]} 14. gxf4 {[%clk 00:58:46]} {[%emt 00:05:41]} e4
{[%clk 01:01:00]} {[%emt 00:08:51]} 15. Ng5 {[%clk 00:56:08]} {[%emt 00:03:07]}
c5 {[%clk 00:36:29]} {[%emt 00:25:02]} 16. Be3 {[%clk 00:48:47]} {[%emt
00:07:50]} cxd4 {[%clk 00:33:16]} {[%emt 00:03:43]} 17. Bxd4 {[%clk 00:48:26]}
{[%emt 00:00:51]} Bf5 {[%clk 00:32:31]} {[%emt 00:01:15]} 18. Ngxe4 {[%clk
00:46:21]} {[%emt 00:02:35]} Nxe4 {[%clk 00:20:17]} {[%emt 00:12:45]} 19. Bxe4
{[%clk 00:45:18]} {[%emt 00:01:32]} Rc8 {[%clk 00:18:12]} {[%emt 00:02:35]} 20.
Bxg7 {[%clk 00:43:18]} {[%emt 00:02:29]} Kxg7 {[%clk 00:18:37]} {[%emt
00:00:06]} 21. Qd3 {[%clk 00:43:07]} {[%emt 00:00:41]} Bxe4 {[%clk 00:18:12]}
{[%emt 00:00:55]} 22. Nxe4 {[%clk 00:43:23]} {[%emt 00:00:13]} Rxf4 {[%clk
00:18:29]} {[%emt 00:00:14]} 23. Nxd6 {[%clk 00:41:49]} {[%emt 00:02:03]} Qc6
{[%clk 00:12:30]} {[%emt 00:06:30]} 24. Qd5 {[%clk 00:41:35]} {[%emt 00:00:43]}
Rcf8 {[%clk 00:11:11]} {[%emt 00:01:49]} 25. Qxc6 {[%clk 00:39:44]} {[%emt
00:02:21]} bxc6 {[%clk 00:11:38]} {[%emt 00:00:04]} 26. f3 {[%clk 00:40:05]}
{[%emt 00:00:08]} Nc7 {[%clk 00:11:12]} {[%emt 00:00:57]} 27. Ne4 {[%clk
00:39:14]} {[%emt 00:01:21]} Ne6 {[%clk 00:11:07]} {[%emt 00:00:35]} 28. Rd6
{[%clk 00:39:22]} {[%emt 00:00:21]} Re8 {[%clk 00:11:23]} {[%emt 00:00:15]} 29.
Rad1 {[%clk 00:38:29]} {[%emt 00:01:23]} g5 {[%clk 00:11:33]} {[%emt 00:00:20]}
30. Rxc6 {[%clk 00:38:07]} {[%emt 00:00:51]} g4 {[%clk 00:11:53]} {[%emt
00:00:10]} 31. Rdd6 {[%clk 00:36:55]} {[%emt 00:01:42]} gxf3 {[%clk 00:11:15]}
{[%emt 00:01:09]} 32. exf3 {[%clk 00:37:09]} {[%emt 00:00:16]} Nf8 {[%clk
00:10:58]} {[%emt 00:00:47]} 33. Rc7+ {[%clk 00:36:28]} {[%emt 00:01:10]} Kh8
{[%clk 00:11:21]} {[%emt 00:00:07]} 34. Rf6 {[%clk 00:34:34]} {[%emt 00:02:24]}
Rh4 {[%clk 00:10:30]} {[%emt 00:01:21]} 35. Rff7 {[%clk 00:34:48]} {[%emt
00:00:16]} Rd8 {[%clk 00:07:24]} {[%emt 00:03:37]} 36. Nf6 {[%clk 00:34:40]}
{[%emt 00:00:37]} Rh6 {[%clk 00:07:40]} {[%emt 00:00:15]} 37. Rxa7 {[%clk
00:31:57]} {[%emt 00:03:14]} Rd1+ {[%clk 00:08:04]} {[%emt 00:00:05]} 38. Kg2
{[%clk 00:31:47]} {[%emt 00:00:39]} Rd2+ {[%clk 00:08:12]} {[%emt 00:00:22]} 39.
Kg3 {[%clk 00:31:31]} {[%emt 00:00:46]} Rd8 {[%clk 00:06:59]} {[%emt 00:01:44]}
40. h4 {[%clk 00:31:29]} {[%emt 00:00:31]} 1-0